[Event "CCC-IM 2022"]
[Site "Ballerup"]
[Date "2022.05.28"]
[Round "7.1"]
[White "Kistrup, Nicolai"]
[Black "Rostgaard, Tobias Valentin"]
[Result "1/2-1/2"]
[ECO "A40"]
[WhiteElo "2306"]
[BlackElo "2339"]
[Annotator "TA"]
[PlyCount "83"]
[EventDate "2022.05.25"]
[EventType "tourn"]
[EventCountry "DEN"]
[SourceTitle "playchess.com"]
[Source "ChessBase"]
[SourceQuality "1"]
[TimeControl "5400+30"]

{[%evp 16,83,39,38,37,43,50,47,52,23,37,25,46,0,70,68,58,63,65,43,87,70,80,80,96,99,78,77,136,128,120,88,87,91,106,0,0,-8,-8,-8,-8,-64,-64,-70,0,0,0,0,0,0,0,0,0,0,0,0,0,0,0,0,0,0,0,0,0,0,0,0,8,8]} 1. d4 {[%emt 0:00:47]} Nf6 {[%emt 0:01:47]} 2. c4 {[%emt 0:00:12]} e6 {[%emt 0:00:09]} 3. g3 {[%emt 0:00:42]} Bb4+ {[%emt 0:01:39]} 4. Bd2 {[%emt 0:02:29]} c5 {[%emt 0:00:20]} 5. Bxb4 {[%emt 0:02:47]} cxb4 {[%emt 0:00:07]} 6. Bg2 {[%emt 0:00:20]} O-O {[%emt 0:00:19]} 7. Nf3 {[%emt 0:02:17]} d6 {[%emt 0:00:38]} 8. O-O {[%emt 0:01:13]} Nc6 {[%emt 0:01:37]} 9. a3 {[%emt 0:01:13]} Bd7 {[%emt 0:02:04] [#] E11: Bogo-Indian.} 10. Re1 $146 {[%emt 0:27:52]} ({Predecessor:} 10. axb4 Nxb4 11. Nc3 a5 12. e4 Qc7 13. e5 dxe5 14. Nxe5 Rfd8 15. Qe2 Be8 16. Rfd1 Qb6 17. c5 {1-0 (31) Mikhalevski,V (2565)-Paichadze,L (2565) Chess.com INT 2020}) 10... Qb6 {[%emt 0:04:51]} 11. e4 {[%emt 0:06:51]} Rfd8 {[%emt 0:04:13] White is slightly better.} 12. axb4 {[%emt 0:25:58]} Qxb4 {[%emt 0:02:15]} 13. Nbd2 {[%emt 0:01:11]} e5 {[%emt 0:13:50]} 14. Qb3 {[%emt 0:02:28]} (14. Re3 $14 {is more appropriate.} Qb6 15. c5 dxc5 16. d5 (16. dxe5 Ng4 $17)) 14... exd4 {[%emt 0:04:14]} (14... Qxb3 $11 15. Nxb3 b6) 15. Qxb4 $14 {[%emt 0:04:37]} Nxb4 {[%emt 0:00:14]} 16. Nxd4 {[%emt 0:00:21]} Ng4 {[%emt 0:09:43]} 17. f4 {[%emt 0:08:49]} Re8 {[%emt 0:09:03]} 18. Ra3 {[%emt 0:03:28]} Bc6 {[%emt 0:01:35]} 19. Rea1 {[%emt 0:00:56]} a6 {[%emt 0:00:49]} 20. Rb3 {[%emt 0:01:02]} a5 {[%emt 0:00:46]} 21. Rba3 {[%emt 0:00:08]} f5 {[%emt 0:08:51]} (21... a4 $142) 22. Nxc6 {[%emt 0:02:52]} ({Don't play} 22. exf5 $6 Bxg2 23. Kxg2 Ne3+ 24. Kf3 Nec2 25. Nxc2 Nxc2 $11) ({Much less strong is} 22. Rxa5 $6 Rxa5 23. Rxa5 fxe4 $14) 22... bxc6 {[%emt 0:03:06]} 23. Rxa5 {[%emt 0:00:15]} Rxa5 {[%emt 0:07:25]} 24. Rxa5 {[%emt 0:00:03]} Ne3 {[%emt 0:00:20]} 25. e5 {[%emt 0:00:55]} ({Weaker is} 25. exf5 Nxg2 26. Kxg2 Re2+ 27. Kf3 Rxd2 $17) (25. Bh1 $16) 25... dxe5 $11 {[%emt 0:01:15]} 26. Rxe5 {[%emt 0:00:20]} Rxe5 {[%emt 0:00:55]} 27. fxe5 {[%emt 0:00:03][%mdl 4096] Endgame KBN-KNN} Kf7 {[%emt 0:00:05]} 28. Nf3 {[%emt 0:02:14]} (28. c5 $11) 28... Nxc4 $15 {[%emt 0:02:36]} 29. Nd4 {[%emt 0:00:54][%csl LRc6,LRf5]} g6 {[%emt 0:01:59]} ({Better is} 29... Nxb2 $15 30. e6+ Kf6 31. Nxf5 g6) 30. Nxc6 $11 {[%emt 0:00:34] The position is equal.} Nxc6 {[%emt 0:00:55]} 31. Bd5+ $1 {[%emt 0:00:06]} Ke7 {[%emt 0:00:06]} 32. Bxc4 {[%emt 0:00:05]} Nxe5 {[%emt 0:00:11] KB-KN} 33. Be2 {[%emt 0:00:27]} Kd6 {[%emt 0:00:04]} 34. Kf2 {[%emt 0:01:33]} Kc5 {[%emt 0:00:22]} 35. h4 {[%emt 0:00:54]} Kd4 {[%emt 0:00:30]} 36. b4 {[%emt 0:00:28][%cal Bb2b4,Bb4b5,Bb5c6][%mdl 32]} h6 {[%emt 0:00:44]} 37. b5 {[%emt 0:00:15]} Kc5 {[%emt 0:00:28]} 38. Ke3 {[%emt 0:00:27]} g5 {[%emt 0:00:22]} 39. hxg5 {[%emt 0:00:10]} hxg5 {[%emt 0:00:06]} 40. g4 {[%emt 0:01:30]} fxg4 {[%emt 0:05:50]} 41. Kf2 {[%emt 0:00:22]} Nc6 {[%emt 0:00:28]} 42. bxc6 {[%emt 0:00:21] Weighted Error Value: White=0.11 (very precise) /Black=0.14 (very precise)} 1/2-1/2

[Event "CCC-IM 2022"]
[Site "Ballerup"]
[Date "2022.05.28"]
[Round "7.2"]
[White "Casper Yukun Liu"]
[Black "Ahlander, Bjorn"]
[Result "1-0"]
[ECO "E04"]
[WhiteElo "2218"]
[BlackElo "2375"]
[Annotator "TA"]
[PlyCount "62"]
[EventDate "2022.05.25"]
[EventType "tourn"]
[EventCountry "DEN"]
[SourceTitle "playchess.com"]
[Source "ChessBase"]
[SourceQuality "1"]
[TimeControl "5400+30"]

{[%evp 17,62,18,18,-48,-37,-41,-45,-52,-58,-63,-55,-111,-114,-114,-111,-312,-314,-310,-298,-311,-309,-314,-268,-267,-267,-267,-266,-262,-267,-264,-265,-447,-445,-445,-445,-445,-445,-445,-445,-603,-607,-605,-602,-600,-581,-516,-509]} 1. d4 {[%emt 0:00:03]} Nf6 {[%emt 0:00:05]} 2. c4 {[%emt 0:00:06]} e6 {[%emt 0:00:04]} 3. g3 {[%emt 0:00:04]} d5 {[%emt 0:00:32]} 4. Bg2 {[%emt 0:00:01]} dxc4 {[%emt 0:00:48]} 5. Nf3 {[%emt 0:00:02]} Nc6 {[%emt 0:00:19]} 6. Qa4 {[%emt 0:03:46]} Bb4+ {[%emt 0:00:05]} 7. Bd2 {[%emt 0:01:11]} Nd5 {[%emt 0:00:04]} 8. Bxb4 {[%emt 0:15:04]} Ndxb4 {[%emt 0:00:47]} 9. O-O {[%emt 0:01:02]} Rb8 {[%emt 0:00:41]} 10. Ne5 {[%emt 0:03:56] E04: Open Catalan: 5 Nf3.} ({Better is} 10. Nc3 $11) 10... Qxd4 $15 {[%emt 0:11:59]} 11. Nxc6 {[%emt 0:00:38]} Nxc6 {[%emt 0:06:46][%cal Bb4c6,Bc6d4,Bd4b5,Bb5c3][%mdl 32]} 12. Na3 {[%emt 0:03:40] Black is slightly better.} Bd7 {[%emt 0:04:10]} (12... Qxb2 $2 13. Rab1 Qd4 14. Rfd1 Qxd1+ 15. Rxd1 $18) 13. Rfd1 {[%emt 0:01:32]} Qc5 {[%emt 0:01:36] [#]} 14. Nxc4 $146 {[%emt 0:16:31] [#]} (14. Qxc4 $15 Qxc4 15. Nxc4) ({Predecessor:} 14. Rac1 b5 15. Qc2 Rd8 16. Nb1 O-O 17. Nc3 a6 18. b3 Nd4 19. Qb2 b4 20. Ne4 c3 21. Qc2 Qb6 22. Qd3 Bb5 {0-1 (22) Bocharov,D (2528)-Sanikidze,T (2458) Chess.com INT 2020}) 14... Nd4 $1 $17 {[%emt 0:04:30]} (14... b5 $6 15. Qa3 Qxa3 16. Nxa3 $11) 15. Nd6+ {[%emt 0:03:43]} Qxd6 {[%emt 0:04:41]} 16. Qxa7 {[%emt 0:00:42]} (16. Qxd4 $17 Qxd4 17. Rxd4) 16... c5 $19 {[%emt 0:00:58]} (16... Nxe2+ 17. Kh1 O-O 18. Rxd6 cxd6 19. Qe3 $18 (19. Bxb7 e5 $18)) 17. e3 {[%emt 0:19:26]} Nb5 {[%emt 0:01:26]} 18. Qa4 {[%emt 0:00:12]} Qc7 {[%emt 0:11:23]} 19. Rac1 {[%emt 0:04:08]} Nc3 {[%emt 0:16:01]} 20. Rxd7 {[%emt 0:00:27]} Qxd7 {[%emt 0:00:11]} ({Don't take} 20... Nxa4 21. Rxc7 O-O 22. b3 $18 (22. Rxb7 Rxb7 23. Bxb7 Rb8 $16) (22. Bxb7 Nxb2 23. R1xc5 Rfd8 $16)) 21. Qxd7+ {[%emt 0:00:05]} Kxd7 {[%emt 0:00:07]} 22. Rxc3 {[%emt 0:00:08][%mdl 4096] Endgame KRR-KRB} b5 {[%emt 0:03:45]} 23. Rxc5 {[%emt 0:00:17]} Rhc8 {[%emt 0:00:17]} 24. Rxc8 {[%emt 0:02:02] [#]} (24. Rg5) 24... Rxc8 {[%emt 0:00:43] KR-KB. Black is clearly winning.} ({Inferior is} 24... Kxc8 25. Kf1 $17) 25. Bf1 {[%emt 0:08:44]} Rc1 {[%emt 0:01:10]} 26. Kg2 {[%emt 0:00:14]} Kc6 {[%emt 0:01:23]} 27. Bd3 {[%emt 0:00:50]} h6 {[%emt 0:03:47] Hoping for ...Ra1.} 28. Bh7 {[%emt 0:08:31]} Ra1 {[%emt 0:01:01]} 29. a3 {[%emt 0:01:13]} Ra2 {[%emt 0:01:12]} 30. Bg8 {[%emt 0:00:08]} Rxb2 {[%emt 0:01:03]} 31. Bxf7 {[%emt 0:00:02]} Kd7 {[%emt 0:01:13][%mdl 32768] White got outplayed after the opening.  Weighted Error Value: White=0.38/Black=0.02 (flawless) . Sensor Board Error (Ke4/e5)?} 1-0

[Event "CCC-IM 2022"]
[Site "Ballerup"]
[Date "2022.05.28"]
[Round "7.3"]
[White "Kenneskog, Theodor"]
[Black "Jacobsen, Mikkel Manosri"]
[Result "0-1"]
[ECO "B12"]
[WhiteElo "2296"]
[BlackElo "2251"]
[Annotator "TA"]
[PlyCount "74"]
[EventDate "2022.05.25"]
[EventType "tourn"]
[EventCountry "DEN"]
[SourceTitle "playchess.com"]
[Source "ChessBase"]
[SourceQuality "1"]
[TimeControl "5400+30"]

{[%evp 9,74,9,9,8,18,16,17,0,21,13,5,-6,39,34,35,33,43,0,31,0,50,43,61,50,65,64,64,56,86,35,33,25,10,16,22,-27,-29,-19,-15,-26,-31,-36,10,11,5,20,0,-322,-300,-300,-306,-325,-330,-463,-462,-470,-394,-466,-503,-560,-558,-679,-697,-928,-546,-1955,-1046]} 1. e4 {[%emt 0:00:04]} c6 {[%emt 0:00:04]} 2. d4 {[%emt 0:00:26]} d5 {[%emt 0:00:05]} 3. e5 {[%emt 0:00:04]} Bf5 {[%emt 0:00:32]} 4. h4 {[%emt 0:00:14]} h5 {[%emt 0:00:04]} 5. Bd3 {[%emt 0:00:05]} Bxd3 {[%emt 0:00:06]} 6. Qxd3 {[%emt 0:00:05][%cal Oe5e6] B12: Caro-Kann: Advance Variation.} Qa5+ {[%emt 0:00:05]} 7. Nd2 {[%emt 0:00:06][%cal Oe5e6]} e6 {[%emt 0:00:03]} 8. Ngf3 {[%emt 0:00:08] The position is equal.} Nh6 {[%emt 0:00:04]} 9. O-O {[%emt 0:00:14]} Nf5 {[%emt 0:00:04]} 10. Nb3 {[%emt 0:00:17] [#] The modern move.} Qa4 $146 {[%emt 0:03:52]} ({Predecessor:} 10... Qa6 11. Qd1 c5 12. Bg5 cxd4 13. Nbxd4 Nxd4 14. Nxd4 Nc6 15. Nxc6 Qxc6 16. a4 Rc8 {1-0 (38) Adams,M (2698)-Salem,A (2690) Malmo 2022}) 11. Bg5 {[%emt 0:06:40]} Nd7 {[%emt 0:02:10]} 12. c3 {[%emt 0:00:33]} c5 {[%emt 0:08:59] Strongly threatening ...c4.} 13. dxc5 {[%emt 0:08:28]} Bxc5 {[%emt 0:02:20]} 14. Rfe1 {[%emt 0:09:23]} O-O {[%emt 0:04:01]} ({Black should try} 14... Rc8 $11) 15. Nfd4 $14 {[%emt 0:00:38]} Bxd4 {[%emt 0:01:57]} 16. Nxd4 {[%emt 0:00:18]} Nxd4 {[%emt 0:00:19]} 17. cxd4 {[%emt 0:00:07]} Rfc8 {[%emt 0:02:07]} 18. b3 {[%emt 0:06:37]} Qb4 {[%emt 0:01:34]} 19. Bd2 {[%emt 0:00:12]} (19. Re3 $16) 19... Qe7 {[%emt 0:01:18]} 20. g3 {[%emt 0:01:32]} Nb8 {[%emt 0:01:07]} 21. Bg5 {[%emt 0:02:40]} Qb4 {[%emt 0:02:05]} 22. Qf3 {[%emt 0:12:17]} (22. Red1 $142) 22... Qxd4 {[%emt 0:07:33] aiming for ...Rc3.} 23. Qxh5 {[%emt 0:00:59]} Rc2 {[%emt 0:01:48]} 24. Be3 {[%emt 0:00:27]} Qc3 {[%emt 0:02:32]} 25. Qg4 $1 {[%emt 0:02:15]} Nc6 {[%emt 0:02:43]} (25... Qxe5 $2 26. Bd4 Qxd4 27. Qxd4 $18) (25... Nd7 $15 26. Bh6 g6) 26. Bh6 $1 $11 {[%emt 0:02:47][%csl Gh6][%cal Rg4g7]} g6 $132 {[%emt 0:01:26][%mdl 2048] Black puts up resistance} 27. Qf4 {[%emt 0:06:15] White wants to mate with Qf6.} Nd4 {[%emt 0:03:37] White must now prevent ...Ne2+.} 28. Rad1 $2 {[%emt 0:07:57][%mdl 8192] [#]} (28. Kg2 $1 $11) 28... Ne2+ $1 $19 {[%emt 0:01:20]} ({Don't play} 28... Nf3+ 29. Kf1 Nh2+ 30. Kg2 $18) 29. Rxe2 {[%emt 0:00:44]} Rxe2 {[%emt 0:00:02]} 30. Rd4 {[%emt 0:01:37][%cal Of4f6] Hoping for Qf6!} Qc7 {[%emt 0:00:14]} (30... Rxa2 $2 {[#]} 31. Qf6 $1 Qe1+ 32. Kg2 Rxf2+ 33. Qxf2 Qxe5 34. Rf4 $18) 31. Qf3 {[%emt 0:09:59]} (31. Kf1 {was called for.} Qxe5 32. Qxe5 Rxe5 33. Be3) 31... Qxe5 {[%emt 0:02:12] ...Re1+ is the strong threat.} 32. Be3 {[%emt 0:00:41]} Re1+ {[%emt 0:02:07]} 33. Kh2 {[%emt 0:02:50]} Rc8 {[%emt 0:04:13] Black is clearly winning.} 34. Rf4 {[%emt 0:05:09]} f5 {[%emt 0:00:28]} 35. h5 {[%emt 0:02:11]} Rc2 {[%emt 0:14:16][%csl LRa2,LRe3] Threatens to win with ...Rxe3.} 36. Bxa7 {[%emt 0:03:10]} Qe2 {[%emt 0:00:57]} 37. Qg2 {[%emt 0:02:15]} Rcc1 {[%emt 0:00:35] Weighted Error Value: White=0.70/Black=0.21 (precise)} 0-1

[Event "CCC-IM 2022"]
[Site "Ballerup"]
[Date "2022.05.28"]
[Round "7.4"]
[White "Brynell, Stellan"]
[Black "Seegert, Kristian"]
[Result "1-0"]
[ECO "A88"]
[WhiteElo "2401"]
[BlackElo "2209"]
[Annotator "TA"]
[PlyCount "51"]
[EventDate "2022.05.25"]
[EventType "tourn"]
[EventCountry "DEN"]
[SourceTitle "playchess.com"]
[Source "ChessBase"]
[SourceQuality "1"]
[TimeControl "5400+30"]

{[%evp 18,51,33,26,108,89,137,144,203,202,187,197,254,266,264,265,270,252,291,266,262,258,320,255,370,380,378,373,374,356,452,452,447,415,454,446]} 1. d4 {[%emt 0:00:03]} f5 {[%emt 0:00:29]} 2. g3 {[%emt 0:00:20]} Nf6 {[%emt 0:00:21]} 3. Bg2 {[%emt 0:00:06]} g6 {[%emt 0:00:25]} 4. Nf3 {[%emt 0:00:17]} Bg7 {[%emt 0:00:22]} 5. c4 {[%emt 0:00:13]} O-O {[%emt 0:01:00]} 6. Nc3 {[%emt 0:00:11]} d6 {[%emt 0:00:27]} 7. O-O {[%emt 0:00:07]} c6 {[%emt 0:00:20]} 8. d5 {[%emt 0:00:40]} Bd7 {[%emt 0:00:17]} 9. e4 {[%emt 0:23:40]} fxe4 {[%emt 0:32:28]} 10. Ng5 {[%emt 0:00:18] [#]} e3 $146 {[%emt 0:02:49] A88: Dutch Defence: Leningrad System: 5 Nf3 0-0 6 0-0 d6 7 Nc3 c6.} (10... Bg4 $11 {keeps the balance.} 11. Qd2 Bf5) ({Predecessor:} 10... cxd5 11. cxd5 Na6 12. Ncxe4 Rc8 13. Be3 b6 14. Nc3 Nc5 15. Qe2 Bg4 16. f3 Bf5 17. Rad1 Qe8 18. Rfe1 {1-0 (26) Cordova,E (2585)-Rodriguez Vila,A (2463) Merida 2019}) 11. Bxe3 $16 {[%emt 0:02:22] And now c5 would win.} Ng4 {[%emt 0:00:22]} (11... Na6 $142) 12. Bd4 {[%emt 0:13:55] White is more active.} e5 {[%emt 0:02:09]} (12... h6 $16) 13. dxe6 $18 {[%emt 0:00:19]} Qxg5 {[%emt 0:00:50]} 14. exd7 {[%emt 0:05:22] [#] Threatens to win with Bxg7. Dancing on a razor blade.} Nxd7 {[%emt 0:02:11]} (14... Bxd4 {is a better defense.} 15. Qxd4 Nxd7) 15. Bxg7 {[%emt 0:04:59]} Kxg7 {[%emt 0:01:13]} 16. Ne4 {[%emt 0:02:14]} (16. Qxd6 $6 Ngf6 17. Rae1 Rf7 $18) 16... Qh5 {[%emt 0:06:48][%csl Gg4][%cal Rh5h2]} 17. h3 {[%emt 0:01:06]} Nge5 {[%emt 0:02:07]} 18. Qxh5 {[%emt 0:01:38]} ({Don't take} 18. Nxd6 $6 Nf3+ 19. Bxf3 Qxf3 20. Qd4+ (20. Nxb7 Ne5 $18) 20... Qf6 21. Qxf6+ Nxf6 $18) 18... gxh5 {[%emt 0:00:06]} 19. Nxd6 {[%emt 0:00:09]} a5 {[%emt 0:08:38]} 20. Rfe1 {[%emt 0:03:20]} ({Don't play} 20. Nxb7 Ra7 $18) 20... Kf6 {[%emt 0:03:21]} (20... h4 $142 21. f4 (21. Nxb7 Rab8 $18) (21. gxh4 b6 $18) 21... Ng6) 21. Ne4+ {[%emt 0:02:55][%cal Bd6e4,Be4c5,Bc5e6,Be6d8][%mdl 32]} Kg7 {[%emt 0:07:21]} 22. Rad1 {[%emt 0:00:54]} Nb6 {[%emt 0:05:27]} 23. b3 {[%emt 0:02:15]} Ng6 {[%emt 0:02:42]} 24. Nc5 {[%emt 0:09:18]} Rf7 {[%emt 0:01:25]} 25. Ne6+ {[%emt 0:00:45]} Kf6 {[%emt 0:01:07]} 26. Nd8 {[%emt 0:02:40] Black did not feel at home in the position after the opening.  Weighted Error Value: White=0.08 (flawless) /Black=0.47} 1-0

[Event "CCC-IM 2022"]
[Site "Ballerup"]
[Date "2022.05.28"]
[Round "7.5"]
[White "Sahl, Bjarke"]
[Black "Nielsen, Thomas Bach"]
[Result "1-0"]
[ECO "B11"]
[WhiteElo "2312"]
[BlackElo "2189"]
[Annotator "TA"]
[PlyCount "115"]
[EventDate "2022.05.25"]
[EventType "tourn"]
[EventCountry "DEN"]
[SourceTitle "playchess.com"]
[Source "ChessBase"]
[SourceQuality "1"]
[TimeControl "5400+30"]

{[%evp 12,115,0,0,7,-24,0,0,29,28,29,29,46,38,40,36,35,31,35,24,28,32,40,33,56,44,67,41,51,44,46,36,60,43,80,80,81,80,80,80,80,80,80,80,109,93,132,91,91,91,91,91,96,91,94,91,210,199,225,213,226,224,220,175,177,166,239,160,248,125,115,112,255,156,145,141,241,229,227,234,339,256,259,259,242,235,453,447,375,285,261,266,29974,29976,29979,29980,29980,29980,29980,29981,29981,29982,29984,29985,29984,29985]} 1. e4 {[%emt 0:29:25]} c6 {[%emt 0:00:06]} 2. Nf3 {[%emt 0:00:45]} d5 {[%emt 0:00:21]} 3. Nc3 {[%emt 0:00:05]} Bg4 {[%emt 0:00:50]} 4. h3 {[%emt 0:01:39]} Bxf3 {[%emt 0:00:28]} 5. Qxf3 {[%emt 0:00:06]} e6 {[%emt 0:02:00]} 6. d3 {[%emt 0:03:21]} Nd7 {[%emt 0:10:41]} 7. a3 {[%emt 0:00:33]} Qb6 {[%emt 0:05:33] 7...g6 is setting a new trend. B11: Caro-Kann: Two Knights Variation.} 8. g3 {[%emt 0:02:14]} (8. Be2 {with more complications.} Bd6 9. O-O Ngf6 10. Rd1) 8... Ngf6 {[%emt 0:13:38]} 9. Bg2 {[%emt 0:00:27] [#]} dxe4 $146 {[%emt 0:00:11] The position is equal.} ({Predecessor:} 9... d4 10. Nb1 Bd6 11. Nd2 O-O 12. O-O Qc7 13. Qe2 b5 14. f4 e5 15. f5 c5 {½-½ (33) Andriasian,Z (2533)-Piorun,K (2445) Warsaw 2008}) 10. Nxe4 {[%emt 0:01:03]} Nxe4 {[%emt 0:00:23]} 11. Qxe4 {[%emt 0:00:38]} Qa5+ {[%emt 0:02:32]} 12. Bd2 {[%emt 0:04:31]} Qd5 {[%emt 0:00:48]} 13. O-O {[%emt 0:00:12]} Qxe4 {[%emt 0:00:08]} 14. Bxe4 {[%emt 0:00:05]} Be7 {[%emt 0:00:47]} 15. b4 {[%emt 0:02:10]} a6 {[%emt 0:09:18]} 16. a4 {[%emt 0:12:28][%cal Ob4b5]} Nf6 {[%emt 0:01:27]} 17. Bf3 {[%emt 0:00:50][%cal Ob4b5]} Kd7 {[%emt 0:03:48]} 18. Rfb1 {[%emt 0:00:55]} Rhc8 {[%emt 0:04:50]} 19. a5 {[%emt 0:03:24]} Ne8 {[%emt 0:04:11]} 20. d4 {[%emt 0:06:52]} Nd6 {[%emt 0:03:02]} 21. c3 {[%emt 0:00:47]} f5 {[%emt 0:08:02]} 22. h4 {[%emt 0:01:36]} g5 {[%emt 0:02:36]} 23. hxg5 {[%emt 0:02:00]} Rg8 {[%emt 0:00:10]} 24. Kg2 {[%emt 0:00:28]} Bxg5 {[%emt 0:03:00]} 25. Bxg5 {[%emt 0:00:21]} Rxg5 {[%emt 0:00:02]} 26. Rh1 {[%emt 0:00:08]} Rh8 {[%emt 0:03:57]} 27. Rh4 {[%emt 0:00:05]} Nc4 {[%emt 0:03:45]} 28. Rd1 {[%emt 0:03:51][%cal Od4d5] Threatens to win with d5!} Ke7 {[%emt 0:02:52]} 29. Be2 {[%emt 0:02:51]} Nd6 {[%emt 0:00:10]} 30. Rdh1 {[%emt 0:00:45] White is more active.} Rg7 {[%emt 0:01:07]} 31. Bd3 {[%emt 0:00:18]} Kf6 {[%emt 0:02:22]} 32. Kf1 {[%emt 0:07:38]} Nf7 {[%emt 0:01:58]} 33. Ke2 {[%emt 0:01:10]} e5 {[%emt 0:00:02]} (33... h6 $16) 34. dxe5+ $18 {[%emt 0:00:43]} Nxe5 {[%emt 0:00:35]} 35. Rh6+ {[%emt 0:00:16]} Ng6 {[%emt 0:01:35]} 36. R1h5 {[%emt 0:00:51]} Re7+ {[%emt 0:01:56]} 37. Kf1 {[%emt 0:01:51]} Rd8 {[%emt 0:01:25]} 38. Bxf5 {[%emt 0:01:13]} Rd1+ {[%emt 0:01:40]} 39. Kg2 {[%emt 0:00:35]} Rd2 {[%emt 0:00:01]} (39... Rc1 $16 40. Bh3 Rg7) 40. Bxg6 {[%emt 0:03:48]} ({Better is} 40. Bg4 $18) 40... hxg6 {[%emt 0:00:04][%mdl 4096] Endgame KRR-KRR} 41. Rh4 {[%emt 0:00:11] Black must now prevent Rh7.} Rd3 {[%emt 0:01:14] Loses the game.} (41... Ree2 $16) 42. Rg4 {[%emt 0:01:53]} Rg7 {[%emt 0:00:21]} 43. Rc4 {[%emt 0:00:13]} Kg5 {[%emt 0:00:21]} (43... Re7 $16 {is a better defense.} 44. Rg4 Rg7) 44. Rhh4 {[%emt 0:00:08]} Rd5 {[%emt 0:01:31]} 45. Rhd4 {[%emt 0:01:59]} Rgd7 {[%emt 0:01:41]} (45... Kf5 $142 46. Rf4+ Kg5 47. Rg4+ Kf6 48. Rcf4+ Ke7 49. Re4+ Kd7) 46. Kf3 {[%emt 0:00:42]} Rf5+ {[%emt 0:01:31]} 47. Ke3 {[%emt 0:00:08]} Re7+ {[%emt 0:01:03]} 48. Re4 {[%emt 0:00:07]} Rxe4+ {[%emt 0:01:23]} (48... Ref7 49. Rg4+ Kf6) 49. Rxe4 {[%emt 0:00:05] KR-KR} c5 {[%emt 0:00:00]} 50. Rc4 {[%emt 0:02:13]} cxb4 {[%emt 0:00:02]} 51. cxb4 {[%emt 0:00:06][%cal Bc3b4,Bb4c5][%mdl 32] Hoping for Rc5.} ({Less strong is} 51. Rxb4 Rf7 52. Kd4 Rc7 $16) 51... Rb5 {[%emt 0:01:17] [#]} (51... Kh6 $18 52. Rc5 Rf7) 52. Rc5+ $1 {[%emt 0:00:29] White mates.} Rxc5 {[%emt 0:00:15]} 53. bxc5 {[%emt 0:00:05] KP-KP} Kf5 {[%emt 0:00:15]} 54. Kd4 {[%emt 0:00:34]} Kg4 {[%emt 0:00:01]} 55. Ke5 {[%emt 0:02:38]} Kf3 {[%emt 0:00:07]} 56. Kf6 {[%emt 0:00:14]} Kxf2 {[%emt 0:00:01] [#]} 57. g4 $1 {[%emt 0:00:06][%cal Bg3g4,Bg4g5][%mdl 32]} Kf3 {[%emt 0:00:35]} 58. g5 {[%emt 0:00:04] Weighted Error Value: White=0.13 (very precise) /Black=0.34} 1-0

[Event "CCC-IM 2022"]
[Site "Ballerup"]
[Date "2022.05.29"]
[Round "8.1"]
[White "Jacobsen, Mikkel Manosri"]
[Black "Haubro, Martin"]
[Result "*"]
[ECO "A46"]
[WhiteElo "2251"]
[BlackElo "2428"]
[Annotator "TA"]
[PlyCount "41"]
[EventDate "2022.05.25"]
[EventType "tourn"]
[EventCountry "DEN"]
[SourceTitle "playchess.com"]
[Source "ChessBase"]
[SourceQuality "1"]
[TimeControl "5400+30"]

{[%evp 20,28,28,32,25,0,31,30,38,26,44]} 1. d4 {[%emt 0:00:03]} Nf6 {[%emt 0:00:26]} 2. Nf3 {[%emt 0:00:06]} d5 {[%emt 0:00:14]} 3. c4 {[%emt 0:01:11]} e6 {[%emt 0:00:24]} 4. e3 {[%emt 0:00:15]} c5 {[%emt 0:01:02]} 5. Nc3 {[%emt 0:00:52]} a6 {[%emt 0:00:09]} 6. cxd5 {[%emt 0:01:57]} exd5 {[%emt 0:00:22]} 7. Be2 {[%emt 0:00:39]} Nc6 {[%emt 0:00:15]} 8. O-O {[%emt 0:00:07]} Bd6 {[%emt 0:02:19]} 9. dxc5 {[%emt 0:01:57]} Bxc5 {[%emt 0:00:13]} 10. b3 {[%emt 0:00:18]} O-O {[%emt 0:01:06]} 11. Bb2 {[%emt 0:00:13]} Bf5 {[%emt 0:01:24] D32: Tarrasch Defence: Sidelines and lines without g3.} 12. Rc1 {[%emt 0:05:13][%cal Oc3d5]} Qd6 {[%emt 0:02:39]} 13. Na4 {[%emt 0:07:10]} Ba7 {[%emt 0:01:52]} 14. Nd4 {[%emt 0:00:44]} Bd7 {[%emt 0:12:27] [#] Black took control after the opening.  Weighted Error Value: White=0.05 (flawless) /Black=0.13 (very precise)} {Predecessor:} 15. Nc2 $146 Rfe8 16. Ba3 Qe5 17. Bf3 Rad8 18. Bb2 Qg5 19. Nc3 Ne5 20. Ne1 Bh3 21. Be2 {0-1 (29) Kampmann,L (2160)-Blodig,S (2080) Bayern 2000} *